bitfinex-derivatives/quotes_ETHF0:USTF0_20251117
["timestamp","ask_amount","ask_price","bid_price","bid_amount"]
[1763416769321,0.3707,3009.0,3008.9,0.232]
[1763416770318,0.2312,3008.7,3008.6,2.66585287]
[1763416770519,0.2312,3008.7,3008.6,2.89785287]
[1763416772418,0.1395,3009.0,3008.9,0.232]
[1763416772726,1.1776662,3009.7,3009.4,0.232]
[1763416772929,1.1776662,3009.8,3009.7,0.232]
[1763416773130,1.3263662,3010.0,3009.7,0.232]
[1763416773431,0.3799,3010.0,3009.9,0.232]
[1763416773616,0.1395,3009.5,3009.4,1.20164266]
[1763416773822,0.1395,3009.5,3009.4,5.33564266]
[1763416774331,0.1395,3009.5,3009.4,4.13898952]
[1763416774927,0.1487,3010.0,3009.4,4.13898952]
[1763416777223,0.1487,3010.0,3009.4,0.23698952]
[1763416777425,0.1487,3010.0,3009.5,8.098]
[1763416777622,0.2312,3009.6,3009.5,0.232]
[1763416777825,0.3707,3009.5,3009.4,0.00498952]
[1763416778020,0.2312,3008.8,3008.7,1.19665314]
[1763416778221,0.1395,3009.0,3008.6,8.098]
[1763416778428,0.2312,3008.7,3008.6,8.098]
[1763416778821,0.2312,3008.7,3008.6,8.33]
[1763416779128,0.1395,3009.0,3008.6,8.33]
[1763416780233,0.3707,3009.0,3008.9,0.232]
[1763416780426,0.1395,3009.0,3008.9,0.232]
[1763416782630,0.3707,3009.0,3008.9,0.232]
[1763416784041,0.3707,3009.0,3008.9,8.329]
[1763416785731,0.1395,3009.5,3008.9,8.329]
[1763416785926,0.3707,3009.5,3009.4,0.232]
[1763416787324,0.3707,3009.5,3009.4,7.287]
[1763416790135,0.2312,3009.1,3009.0,1.19665314]
[1763416790332,0.2312,3009.1,3009.0,8.096]
[1763416790931,0.1395,3009.5,3009.0,8.328]
[1763416791130,0.3707,3009.5,3009.4,0.232]
[1763416791438,0.2312,3009.4,3009.3,5.797]
[1763416792639,0.2312,3009.4,3009.3,6.029]
[1763416794444,0.1395,3009.5,3009.4,0.232]
[1763416794940,0.3707,3009.5,3009.4,0.232]
[1763416795337,0.00498952,3009.8,3009.7,0.232]
[1763416795538,0.23618952,3009.8,3009.7,0.232]
[1763416795733,0.3799,3010.0,3009.9,0.232]
[1763416796437,1.1776662,3010.4,3009.9,0.232]
[1763416796837,0.1519,3010.0,3009.9,0.232]
[1763416797036,0.1519,3010.0,3009.9,4.095]
[1763416797743,1.3189124,3010.5,3009.9,4.095]
[1763416799045,0.1519,3010.0,3009.9,4.095]
[1763416799945,0.1412462,3010.5,3009.9,4.095]
[1763416800448,4.62e-05,3010.5,3010.0,0.0752]
[1763416800745,0.4049462,3010.5,3010.4,0.2488]
[1763416801049,4.62e-05,3010.5,3010.4,0.2488]
[1763416801238,0.1519462,3010.5,3010.0,0.00235131]
[1763416801443,0.4049462,3010.5,3010.4,0.2488]
[1763416801648,0.1519462,3010.5,3010.4,0.2488]
[1763416802443,0.4049462,3010.5,3010.4,0.2488]
[1763416802637,0.1519462,3010.5,3010.4,4.5228]
[1763416803033,0.4049462,3010.5,3010.4,0.2488]
[1763416803240,0.4049462,3010.5,3010.0,0.00235131]
[1763416803548,0.253,3010.1,3010.0,0.00235131]
[1763416804544,0.253,3010.1,3009.8,0.00498952]
[1763416804545,0.253,3009.9,3009.8,0.00498952]
[1763416804744,0.4049,3009.0,3008.9,0.2488]
[1763416804934,0.4049,3009.0,3008.5,8.092]
[1763416804935,0.253,3008.8,3008.5,8.092]
[1763416805139,0.1519,3008.5,3008.4,0.2488]
[1763416805338,0.1519,3009.0,3008.4,0.2488]
[1763416805543,0.1519,3009.0,3008.4,0.25186691]
[1763416805744,0.15688952,3009.0,3008.4,0.25685643]
[1763416806447,0.4049,3008.5,3008.4,0.25685643]
[1763416806747,0.15688952,3009.0,3008.4,0.25685643]
[1763416808053,0.15688952,3009.0,3008.5,0.1486]
[1763416808543,0.00498952,3009.0,3008.9,0.2488]
[1763416808742,0.25798952,3009.0,3008.9,0.2488]
[1763416809552,0.40988952,3009.0,3008.9,0.2488]
[1763416810153,0.40988952,3009.0,3008.5,0.1486]
[1763416810845,0.40988952,3009.0,3008.9,0.2488]
[1763416811044,0.40988952,3009.0,3008.5,0.1486]
[1763416811649,0.253,3008.6,3008.5,0.2488]
[1763416816152,0.4049,3008.5,3008.4,0.00805643]
[1763416816344,0.253,3008.5,3008.4,0.25685643]
[1763416816650,0.40988952,3009.0,3008.9,0.2488]
[1763416816845,0.253,3009.8,3009.0,0.1486]
[1763416817041,0.1519462,3010.5,3009.0,0.1486]
[1763416817042,0.1519462,3010.5,3009.9,0.2488]
[1763416817241,0.253,3009.4,3009.3,0.2488]
[1763416817647,1.1776662,3010.4,3009.3,0.2488]
[1763416817850,1.3296124,3010.5,3009.3,0.2488]
[1763416818152,0.253,3009.4,3009.3,0.2488]
[1763416818353,1.1776662,3010.4,3009.3,0.2488]
[1763416818544,0.1519462,3010.5,3009.9,0.2301]
[1763416818749,0.3888,3010.0,3009.1,1.19665314]
[1763416819452,0.3888,3010.0,3009.2,3.189]
[1763416819853,0.3888,3010.0,3009.3,8.092]
[1763416820055,0.3888,3010.0,3009.2,8.092]
[1763416820255,0.2369,3009.3,3009.2,0.2301]
[1763416820749,0.1519,3010.0,3009.2,0.2301]
[1763416821753,0.2369,3009.3,3009.2,0.2301]
[1763416822451,0.2369,3009.3,3008.8,1.19665314]
[1763416822643,0.2369,3008.9,3008.8,0.2301]
[1763416823045,0.2369,3008.9,3008.4,5.20670957]
[1763416823249,0.1404,3009.5,3008.8,0.2301]
[1763416825355,0.1519,3010.0,3009.5,0.1447]
[1763416825546,0.1519,3010.0,3009.0,0.1447]
[1763416825751,0.1519,3010.0,3009.1,2.46]
[1763416826050,0.1519,3010.0,3009.0,0.1447]
[1763416826250,0.1519,3010.0,3009.1,6.301]
[1763416827154,0.1519,3010.0,3009.1,4.921]
[1763416827742,0.1519,3010.0,3009.0,0.1447]
[1763416827943,0.1519,3010.0,3009.1,4.265]
[1763416828363,0.1519,3010.0,3009.0,4.0987]
[1763416830860,0.1519,3010.0,3009.0,4.4167]
[1763416831960,0.1519,3010.0,3009.0,0.1447]
[1763416832154,0.1519,3010.0,3009.0,2.6027]
[1763416832653,0.1519,3010.0,3009.0,3.7707]
[1763416833158,0.1519,3010.0,3009.0,1.34135314]
[1763416833351,0.1519,3010.0,3009.0,3.80135314]
[1763416833551,0.1519,3010.0,3009.0,0.1447]
[1763416834153,1.3295662,3010.0,3009.0,0.1447]
[1763416837758,1.3295662,3010.0,3008.5,0.1397]
[1763416837759,0.1502,3009.5,3008.8,1.19665314]
[1763416837967,0.2439,3008.9,3008.8,0.2442]
[1763416838263,3.888,3009.4,3008.8,0.2442]
[1763416839263,0.1502,3009.5,3008.8,0.2442]
[1763416839466,0.1502,3009.5,3008.7,1.19665314]
[1763416839467,0.2439,3008.8,3008.7,1.19665314]
[1763416839668,0.3941,3008.5,3008.4,0.00805643]
[1763416839859,0.2439,3008.2,3008.0,0.43113765]
[1763416840063,0.2439,3007.7,3007.6,0.2442]
[1763416840266,0.3941,3008.0,3007.9,0.2442]
[1763416840672,0.2439,3008.0,3007.9,0.2442]
[1763416840866,0.24662297,3008.0,3007.9,0.24850212]
[1763416841977,0.39682297,3008.0,3007.9,0.00430212]
[1763416842175,0.2439,3007.7,3007.6,0.00498952]
[1763416842373,0.2439,3007.7,3007.0,1.94129677]
[1763416842374,0.2439,3007.7,3007.0,0.1467]
[1763416842973,0.2439,3007.1,3007.0,0.2442]
[1763416843279,0.2439,3007.1,3007.0,0.24808798]
[1763416843878,0.74296337,3007.9,3007.8,0.2442]
[1763416844077,0.00272297,3008.0,3007.9,0.2442]
[1763416844378,0.39682297,3008.0,3007.5,0.1467]
[1763416845078,0.00272297,3008.0,3007.9,0.2442]
[1763416846381,0.24662297,3008.0,3007.9,0.2442]
[1763416847281,0.24662297,3008.0,3007.5,0.1467]
[1763416848278,0.39682297,3008.0,3007.5,0.1467]
[1763416850475,0.39682297,3008.0,3007.0,0.14858798]
[1763416850880,0.39682297,3008.0,3007.1,2.017]
[1763416851385,0.39682297,3008.0,3007.0,0.14858798]
[1763416851584,0.39682297,3008.0,3007.1,1.924]
[1763416852179,0.39682297,3008.0,3007.1,5.587]
[1763416853177,0.39682297,3008.0,3007.1,7.326]
[1763416853481,0.39682297,3008.0,3007.0,0.14858798]
[1763416853685,0.39682297,3008.0,3007.0,0.00388798]
[1763416855071,0.2439,3007.1,3007.0,0.24808798]
[1763416856785,0.2439,3007.1,3007.0,0.00388798]
[1763416856993,0.1502,3007.5,3006.7,0.00498952]
[1763416856994,0.2431,3006.8,3006.7,0.00498952]
[1763416858082,0.2431,3006.8,3006.7,0.00736455]
[1763416858384,0.1502,3007.5,3006.7,0.00736455]
[1763416858385,0.1502,3007.5,3006.9,0.2455]
[1763416858781,0.2431,3007.0,3006.9,0.2455]
[1763416861201,0.73957835,3007.7,3006.7,0.00736455]
[1763416861202,0.2431,3007.7,3007.6,0.2455]
[1763416861484,0.2431,3007.7,3007.0,0.1428]
[1763416861689,0.2431,3007.7,3006.8,0.881]
[1763416862278,0.2431,3007.7,3006.8,8.093]
[1763416862487,0.2431,3007.7,3006.7,0.00736455]
[1763416862688,0.2431,3007.7,3006.8,8.093]
[1763416863079,0.2431,3007.7,3006.7,0.00736455]
[1763416863278,0.2431,3007.7,3006.8,8.093]
[1763416863886,0.2431,3007.7,3006.7,0.00736455]
[1763416864082,0.2431,3007.7,3006.8,4.739]
[1763416864490,0.2431,3006.8,3006.7,0.25286455]
[1763416864685,0.2431,3006.8,3005.5,0.1467]
[1763416865694,0.14898952,3006.5,3005.8,0.00498952]
[1763416865885,0.2431,3005.9,3005.8,0.00498952]
[1763416867782,0.2431,3005.6,3005.5,0.00269266]
[1763416867984,0.2431,3005.6,3004.1,2.40131762]
[1763416867985,0.144,3005.5,3004.1,1.79459677]
[1763416868183,0.144,3005.5,3003.8,1.79459677]
[1763416868395,0.144,3005.5,3003.7,0.03329283]
[1763416868892,0.00498952,3004.9,3004.8,0.2455]
[1763416869084,0.00498952,3004.9,3004.8,0.24864179]
[1763416870191,0.24808952,3004.9,3004.8,0.00314179]
[1763416870689,0.24808952,3004.9,3004.8,0.24864179]
[1763416870690,0.00498952,3004.9,3004.8,0.24864179]
[1763416871195,0.24808952,3004.9,3004.8,0.00314179]
[1763416871491,0.2431,3004.4,3003.7,0.03329283]
[1763416871691,0.2431,3003.8,3003.7,0.03329283]
[1763416871891,0.144,3004.0,3003.7,0.03329283]
[1763416872095,0.144,3004.5,3003.7,0.03329283]
[1763416872290,0.2431,3003.8,3003.0,0.54481319]
[1763416872595,0.74333567,3004.4,3003.7,0.24970837]
[1763416872790,0.2431,3003.8,3003.7,0.00420837]
[1763416873296,0.2431,3003.2,3003.1,0.00498952]
[1763416873488,0.144,3004.0,3003.1,0.25048952]
[1763416874497,0.14825003,3004.0,3003.1,0.25473615]
[1763416877701,0.00425003,3004.0,3003.1,0.25473615]
[1763416878102,0.00425003,3004.0,3003.1,0.85473615]
[1763416878688,0.00425003,3004.0,3003.9,0.2455]
[1763416879492,0.24865003,3004.0,3003.5,0.0919]
[1763416879888,0.24865003,3004.0,3003.9,0.2431]
[1763416881602,0.39055003,3004.0,3003.1,0.00923615]
[1763416882202,0.24865003,3004.0,3003.9,0.2431]
[1763416882599,0.00425003,3004.0,3003.9,0.2431]
[1763416882804,0.00498952,3004.9,3004.0,0.1405]
[1763416883015,0.00498952,3004.9,3004.8,0.2431]
[1763416883801,0.00796425,3004.9,3004.8,0.2431]
[1763416886706,0.00796425,3004.9,3004.8,0.4841]
[1763416888510,0.00796425,3004.9,3004.8,0.2431]
[1763416889705,3.888,3005.9,3005.8,0.2503]
[1763416889913,3.888,3005.9,3005.5,0.1428]
[1763416889914,0.2464,3005.9,3005.5,0.1428]
[1763416890210,0.2464,3005.9,3005.0,0.1365]
[1763416890508,3.888,3006.4,3005.8,0.2503]
[1763416890709,3.89612415,3006.4,3005.8,0.25824686]
[1763416893302,0.74638374,3006.3,3005.8,0.25824686]
[1763416895513,3.888,3006.2,3005.8,0.25824686]
[1763416896009,0.2464,3005.9,3005.8,0.00794686]
[1763416898616,3.888,3006.2,3005.8,0.25824686]
[1763416899208,0.2464,3005.9,3005.8,0.25824686]
[1763416901617,0.2464,3005.9,3005.8,0.00794686]
[1763416904821,0.2464,3005.9,3005.0,0.1365]
[1763416905020,4.1344,3005.9,3005.0,0.1365]
[1763416905519,4.1344,3005.9,3005.0,0.44209057]
[1763416905721,0.2464,3005.9,3005.0,0.44209057]
[1763416905917,0.2464,3005.9,3005.1,0.00498952]
[1763416907725,0.2464,3005.2,3005.1,0.00498952]
[1763416908325,0.2464,3005.2,3005.0,0.00390435]
[1763416908326,0.2464,3005.1,3005.0,0.00390435]
[1763416908513,0.1519,3005.0,3004.3,0.55625639]
[1763416908718,0.1519,3005.0,3004.9,0.2503]
[1763416908719,0.2464,3005.0,3004.9,0.2503]
[1763416908915,1.3295662,3005.5,3004.9,0.2503]
[1763416909223,0.75511692,3005.4,3004.9,0.25362635]
[1763416909423,0.15688952,3005.5,3004.9,0.25362635]
[1763416909424,0.75511692,3005.3,3004.9,0.25658168]
[1763416909724,0.15688952,3005.5,3005.1,0.2503]
[1763416911627,0.15688952,3005.5,3005.4,0.2503]
[1763416911628,0.00498952,3005.5,3005.4,0.2503]
[1763416912823,0.25138952,3005.5,3005.4,0.2503]
[1763416913927,1.00793486,3005.5,3005.4,0.2503]
[1763416914127,0.25138952,3005.5,3005.4,0.2503]
[1763416914323,0.15688952,3005.5,3004.9,0.00628168]
[1763416914525,0.3983,3005.0,3004.9,0.00628168]
[1763416914726,0.75654534,3005.4,3004.9,0.25658168]
[1763416915030,0.75654534,3005.3,3004.9,0.25658168]
[1763416915328,0.75654534,3005.2,3004.9,0.25658168]
[1763416915525,0.15688952,3005.5,3004.9,0.25658168]
[1763416915829,0.91453755,3005.5,3004.9,0.25658168]
[1763416916023,0.75764803,3005.4,3004.9,0.25658168]
[1763416916230,0.75764803,3005.3,3004.9,0.25658168]
[1763416916527,0.75764803,3005.2,3005.1,0.2503]
[1763416916722,0.15688952,3005.5,3005.0,0.1428]
[1763416916723,0.40328952,3005.5,3005.4,0.2503]
[1763416916922,0.25138952,3005.5,3005.4,0.2503]
[1763416919418,1.14845109,3005.5,3005.0,0.1428]
[1763416919629,0.75766157,3005.4,3005.0,0.1428]
[1763416919825,0.75766157,3005.3,3005.2,0.2465]
[1763416920029,0.00498952,3005.5,3005.4,0.2465]
[1763416921517,0.7622248,3005.5,3005.4,0.2465]
[1763416922025,0.00498952,3005.5,3005.4,0.2465]
[1763416922730,0.00498952,3005.5,3005.0,0.1428]
[1763416922731,0.38428952,3005.5,3005.0,0.1428]
[1763416922930,0.38428952,3005.5,3004.9,1.80087845]
[1763416922931,0.38428952,3005.5,3004.9,4.24028168]
[1763416923134,0.3793,3005.0,3004.9,0.00628168]
[1763416923423,0.2399,3004.4,3004.2,1.79459677]
[1763416923623,0.2399,3004.4,3003.5,0.1428]
[1763416923624,0.2399,3003.9,3003.5,0.30279963]
[1763416923829,0.2399,3003.9,3003.3,1.79459677]
[1763416924029,0.2399,3003.9,3003.3,2.08812151]
[1763416924226,0.2399,3003.9,3003.3,0.29352474]
[1763416924523,0.24808591,3003.9,3003.3,1.79799785]
[1763416924730,0.24808591,3003.9,3003.3,0.00340108]
[1763416926429,0.00818591,3003.9,3003.8,0.2465]
[1763416927728,0.24808591,3003.9,3003.5,4.5846]
[1763416927926,0.00818591,3003.9,3003.8,0.2465]
[1763416929931,0.24808591,3003.9,3003.5,0.0936]
[1763416930626,0.24808591,3003.9,3003.8,0.2465]
[1763416931525,0.00818591,3003.9,3003.8,0.2465]
[1763416932827,0.24808591,3003.9,3003.5,6.8396]
[1763416933029,0.24808591,3003.9,3003.5,0.0936]
[1763416933220,0.24808591,3003.9,3003.3,0.3099513]
[1763416933527,0.2399,3003.4,3003.3,0.00340108]
[1763416934233,0.2399,3003.4,3003.3,0.24990108]
[1763416934435,0.2399,3003.4,3003.3,0.00340108]
[1763416938342,0.2399,3003.1,3003.0,0.1]
[1763416938534,0.1468,3003.0,3002.0,0.1413]
[1763416939435,3.888,3002.9,3002.0,0.3033925]
[1763416939641,3.888,3002.9,3002.0,0.3823925]
[1763416942136,4.1262,3002.9,3002.8,0.2416]
[1763416942444,0.2382,3002.9,3002.5,0.1485]
[1763416942638,0.1468,3003.0,3002.5,0.2416]
[1763416942940,0.1468,3003.0,3002.5,0.3901]
[1763416944142,0.1468,3003.0,3002.5,0.2416]
[1763416944333,0.2382,3002.6,3002.5,0.2416]
[1763416945346,0.2382,3002.1,3002.0,0.00408271]
[1763416945836,0.1468,3002.0,3000.6,40.8]
[1763416946039,0.1468,3002.0,3000.9,0.29367371]
[1763416946241,0.1468,3002.0,3000.7,8.102]
[1763416946541,0.1468,3002.0,3000.7,4.35723183]
[1763416946844,0.1468,3002.0,3000.7,4.05392782]
[1763416947239,0.1468,3002.0,3000.7,0.00292782]
[1763416949038,0.2382,3000.8,3000.7,0.00292782]
[1763416949337,0.2382,3000.8,3000.7,0.25512782]
[1763416949338,0.00239946,3000.8,3000.7,0.25512782]
[1763416951944,0.1498,3001.5,3000.7,0.25512782]
[1763416952845,0.15238455,3001.5,3000.7,0.25512782]
[1763416953538,0.00258455,3001.5,3001.4,0.2522]
[1763416953747,0.25678455,3001.5,3001.4,0.2522]
[1763416954339,0.40658455,3001.5,3001.0,0.1528]
[1763416954539,0.25678455,3001.5,3001.4,0.2522]
[1763416954937,0.00258455,3001.5,3001.4,0.2522]
[1763416955244,0.25678455,3001.5,3001.0,1.7038]
[1763416955436,0.00258455,3001.5,3001.4,0.2522]
[1763416956239,0.25678455,3001.5,3001.4,0.2522]
[1763416957248,0.40658455,3001.5,3001.0,0.1528]
[1763416958247,0.40658455,3001.5,3000.7,3.66392782]
[1763416960947,0.40658455,3001.5,3000.7,6.97492782]
[1763416961449,0.25678455,3001.5,3001.4,0.2522]
[1763416961754,0.40658455,3001.5,3000.8,3.243]
[1763416962350,0.40658455,3001.5,3000.7,7.13992782]
[1763416962539,0.40658455,3001.5,3001.4,0.2522]
[1763416965954,0.25678455,3001.5,3001.4,0.2522]
[1763416968148,0.2542,3001.1,3000.7,0.00292782]
[1763416968460,0.2542,3000.8,3000.7,0.25512782]
[1763416968756,0.404,3001.0,3000.9,0.2522]
[1763416968952,0.2542,3001.0,3000.9,0.2522]
[1763416969750,0.15238455,3001.5,3001.0,0.1485]
[1763416969954,0.00258455,3001.5,3001.4,0.2522]
[1763416970167,0.25678455,3001.5,3001.4,0.2522]
[1763416970365,0.00258455,3001.5,3001.4,0.2522]
[1763416971048,0.00258455,3001.5,3001.0,0.1485]
[1763416971049,0.25678455,3001.5,3001.0,0.1485]
[1763416971244,0.40658455,3001.5,3000.7,0.00292782]
[1763416973949,1.1627693,3001.5,3000.7,0.00292782]
[1763416974158,0.40658455,3001.5,3000.7,0.00292782]
[1763416975360,0.40658455,3001.5,3000.8,1.79113304]
[1763416975959,0.00258455,3001.5,3001.4,0.2522]
[1763416976162,0.76063252,3001.5,3001.4,0.2522]
[1763416976361,0.00258455,3001.5,3001.4,0.2522]
[1763416977058,1.18638518,3002.5,3002.3,0.2488]
[1763416977256,1.18638518,3002.7,3002.3,0.2488]
[1763416977657,1.18638518,3002.8,3002.3,0.2488]
[1763416977958,0.24247045,3002.4,3002.0,5.3115]
[1763416978161,0.00757045,3002.4,3002.3,0.2488]
[1763416978548,0.00757045,3002.4,3002.0,5.3115]
[1763416978549,0.24247045,3002.4,3002.0,5.3115]
[1763416978754,0.00757045,3002.4,3002.3,0.2488]
[1763416980062,0.24247045,3002.4,3002.3,0.2488]
[1763416980254,0.24247045,3002.4,3002.0,8.2515]
[1763416980452,0.24247045,3002.4,3002.0,0.1455]
[1763416981065,0.24247045,3002.4,3001.7,1.79878369]
[1763416981365,0.24247045,3002.4,3001.6,1.79878369]
[1763416981563,0.24247045,3002.4,3002.3,0.2488]
[1763416981564,0.00757045,3002.4,3002.3,0.2488]
[1763416981763,0.24247045,3002.4,3001.5,1.94428369]
[1763416982061,0.24247045,3002.4,3001.5,0.1455]
[1763416982364,0.24247045,3002.4,3001.4,1.79878369]
[1763416982564,0.24247045,3002.4,3001.5,0.1455]
[1763416984964,0.00757045,3002.4,3002.3,0.2488]
[1763416990373,0.1498,3003.5,3002.3,3.5792]
[1763416990673,0.1498,3003.5,3002.3,0.2488]
[1763416990868,0.1498,3003.5,3002.5,0.1455]
[1763416991066,0.90168189,3003.5,3002.5,0.1455]
[1763416991273,0.1498,3003.5,3002.5,0.1455]
[1763416991575,0.00499792,3003.3,3002.7,0.00499792]
[1763416991775,0.2349,3002.8,3002.7,0.00499792]
[1763416992276,0.2349,3002.8,3002.7,0.25379792]
[1763416992464,0.2349,3002.8,3002.7,0.00499792]
[1763416995277,0.2349,3003.0,3002.9,0.2488]
[1763416995573,0.3829,3003.0,3002.9,0.00422515]
[1763417002775,0.2349,3002.8,3002.0,0.1455]
[1763417003777,0.2349,3002.8,3002.0,0.14886833]
[1763417005278,0.2349,3002.8,3002.0,1.94765202]
[1763417006378,0.2349,3002.8,3002.1,1.79878369]
[1763417006978,0.2349,3002.8,3002.0,1.94765202]
[1763417007470,0.2514,3002.1,3002.0,0.23476833]
[1763417007671,0.75197183,3002.9,3002.0,0.37546833]
[1763417007877,0.75197183,3002.8,3002.0,0.37546833]
[1763417008179,0.75197183,3002.7,3002.0,0.37546833]
[1763417008373,0.75197183,3002.6,3002.0,0.37546833]
[1763417008578,0.75197183,3002.5,3002.0,0.37546833]
[1763417008774,1.18638518,3003.0,3002.0,2.17425202]
[1763417008978,0.2403,3003.1,3002.5,0.1407]
[1763417009176,0.99591268,3003.1,3002.5,0.1407]
[1763417009483,0.2403,3003.1,3003.0,0.3954]
[1763417010084,0.99590296,3003.1,3002.5,0.1407]
[1763417010275,0.75560296,3003.0,3002.5,0.1407]
[1763417010477,0.99590296,3002.9,3002.8,0.2547]
[1763417011181,0.2403,3002.9,3002.8,0.2547]
[1763417012182,0.75560296,3003.0,3002.9,0.2547]
[1763417012680,0.2403,3003.2,3003.1,0.2547]
[1763417013081,0.2403,3003.2,3003.0,0.1407]
[1763417013082,0.00499792,3003.3,3003.2,0.2547]
[1763417013287,1.00112215,3003.3,3003.2,0.2547]
[1763417013478,0.24529792,3003.3,3003.2,0.2547]
[1763417013679,1.92817778,3004.0,3003.6,0.2547]
[1763417013680,0.7558078,3003.7,3003.6,0.2547]
[1763417013879,0.2403,3004.1,3004.0,0.2547]
[1763417014079,0.99722271,3004.1,3004.0,0.2547]
[1763417014279,0.2403,3004.1,3004.0,0.2547]
[1763417014886,0.24293407,3004.1,3003.7,0.00499792]
[1763417015982,0.2403,3003.2,3003.1,1.79878369]
[1763417016175,0.2403,3003.1,3003.0,0.3954]
[1763417016478,1.22808518,3004.0,3003.0,0.3954]
[1763417016886,1.18638518,3003.9,3003.0,0.3954]
[1763417017087,2.53913456,3004.1,3003.0,0.3954]
[1763417017088,0.75692271,3003.8,3003.0,0.3954]
[1763417017382,0.00263407,3004.1,3004.0,0.3954]
[1763417017685,0.24293407,3004.1,3003.5,0.1407]
[1763417017885,0.0417,3004.0,3003.5,0.1407]
[1763417018089,0.2403,3003.1,3003.0,0.1407]
[1763417018385,0.2403,3003.1,3002.5,0.1407]
[1763417018582,0.75618477,3003.6,3003.5,0.3954]
[1763417018786,0.2403,3003.6,3003.0,0.1407]
[1763417019081,0.75618477,3003.7,3003.6,0.2547]
[1763417019474,0.00263407,3004.1,3003.6,0.2547]
[1763417019678,2.37277037,3004.7,3003.5,0.1407]
[1763417019679,2.37277037,3005.1,3005.0,0.3954]
[1763417019874,2.96596297,3005.5,3005.0,0.3954]
[1763417019875,2.37277037,3005.6,3005.5,0.3954]
[1763417020181,9.49108149,3007.6,3005.5,0.3954]
[1763417020382,2.37277037,3008.2,3006.0,0.1407]
[1763417020589,0.53939,3007.1,3006.0,2.05251344]
[1763417020789,0.00498944,3007.1,3006.4,0.00498924]
[1763417021087,0.00498944,3007.1,3007.0,0.2547]
[1763417022487,0.00498944,3007.1,3006.6,2.1297]
[1763417022886,0.00498944,3007.1,3006.6,0.1407]
[1763417023089,0.00498944,3007.1,3006.4,0.29377337]
[1763417023090,0.00498944,3007.1,3006.4,0.00498924]
[1763417023985,0.54436944,3007.1,3006.4,0.00498924]
[1763417024186,0.00498944,3007.1,3006.4,0.00498924]
[1763417024386,0.54437944,3007.1,3006.4,0.00498924]
[1763417024590,0.5394,3007.0,3006.4,0.00498924]
[1763417026581,0.5394,3007.0,3006.5,0.1407]
[1763417026786,0.00498944,3007.1,3007.0,0.3954]
[1763417027990,0.53945,3006.7,3006.5,0.1407]
[1763417028292,0.53945,3006.7,3006.4,0.00498924]
[1763417028293,0.00498944,3007.1,3006.4,0.00498924]
[1763417028595,0.53943,3006.8,3006.5,0.1407]
[1763417028796,0.5394,3007.0,3006.5,0.1407]
[1763417029095,0.00498944,3007.1,3007.0,0.3954]
[1763417029294,0.0951,3009.5,3007.5,0.1407]
[1763417029490,0.53917,3008.3,3007.5,6.3447]
[1763417030195,0.002605,3008.3,3008.2,0.2547]
[1763417030398,0.002605,3008.3,3008.2,0.25788589]
[1763417032796,0.0346,3008.7,3008.6,0.2547]
[1763417033695,0.03874656,3008.7,3008.6,0.2547]
[1763417034403,0.00498944,3009.0,3008.9,0.2547]
[1763417035502,0.00771375,3009.0,3008.9,0.2547]
[1763417036995,0.00771375,3009.0,3008.9,1.9207]
[1763417037903,0.53879,3010.4,3009.0,0.1516]
[1763417038103,0.0951,3011.0,3009.0,0.1516]
[1763417038104,0.53874,3010.7,3009.0,0.1516]
[1763417038310,0.0951,3011.0,3009.1,40.8]
[1763417038601,0.53869,3011.0,3009.1,44.1216]
[1763417038794,0.00498944,3010.4,3010.3,0.2366]
[1763417039001,0.00498944,3010.4,3010.3,8.3486]
[1763417039899,0.00498944,3010.4,3010.3,0.2366]
[1763417040106,0.00498944,3010.4,3010.3,8.3496]
[1763417040402,0.00498944,3010.4,3009.9,0.2366]
[1763417040600,0.00498944,3010.4,3010.3,0.2366]
[1763417041295,0.2423,3009.8,3009.7,0.00498944]
[1763417041495,0.143,3010.2,3009.2,5.279]
[1763417041496,0.53892,3009.7,3009.2,5.279]
[1763417041711,0.53894,3009.6,3009.0,7.9736]
[1763417042004,0.53895,3009.5,3009.0,8.2656]
[1763417042200,0.143,3010.2,3009.0,8.2656]
[1763417042504,0.53893,3009.6,3009.3,0.00498944]
[1763417043096,0.53895,3009.5,3009.3,0.00498944]
[1763417043296,0.2423,3009.4,3009.3,0.00498944]
[1763417043699,0.143,3010.2,3009.3,0.00498944]
[1763417044103,0.53891,3009.7,3009.3,0.00498944]
[1763417044305,0.53893,3009.6,3009.3,0.00498944]
[1763417045094,0.143,3010.2,3009.3,0.00498944]
[1763417045298,0.53893,3009.6,3009.3,0.00498944]
[1763417045900,0.5389,3009.8,3009.3,0.00498944]
[1763417046103,0.53893,3009.6,3009.3,0.00498944]
[1763417046505,0.53895,3009.5,3009.3,0.00498944]
[1763417047903,0.143,3009.0,3008.2,0.00318589]
[1763417048699,0.53915,3008.4,3008.2,0.00318589]
[1763417048903,0.54310695,3008.4,3008.2,0.00318589]
[1763417049107,0.2423,3008.1,3008.0,0.00498944]
[1763417049306,0.7815,3008.1,3008.0,0.00498944]
[1763417050110,0.7815,3008.1,3008.0,0.00810119]
[1763417050412,0.2423,3008.1,3008.0,0.00810119]
[1763417050711,0.00395695,3008.4,3008.0,0.00810119]
[1763417050712,0.00395695,3008.4,3008.3,0.2366]
[1763417051708,0.0786,3010.0,3008.9,0.2366]
[1763417052010,0.0786,3010.0,3008.5,0.1516]
[1763417052011,0.2423,3008.7,3008.5,0.212]
[1763417052407,0.68205,3009.0,3008.6,0.2366]
[1763417052714,0.68462348,3009.0,3008.6,0.2366]
[1763417053112,0.53906,3008.9,3008.6,0.2366]
[1763417053803,0.2423,3008.1,3008.0,0.00810119]
[1763417054006,0.2423,3007.6,3007.5,0.87634403]
[1763417054218,0.2423,3007.5,3006.9,4.301]
[1763417054601,0.2423,3007.5,3006.6,0.87634403]
[1763417054602,0.143,3008.5,3006.7,0.87634403]
[1763417054802,0.53929,3007.6,3006.6,0.87634403]
[1763417055008,0.54427944,3007.6,3007.0,0.15926809]
[1763417055215,0.00498944,3007.6,3007.0,0.15926809]